bitfinex-derivatives/quotes_ETHF0:USTF0_20250828
["timestamp","ask_amount","ask_price","bid_price","bid_amount"]
[1756346392682,21.9659,4519.1,4518.6,0.6973]
[1756346392885,0.1962,4518.8,4518.7,0.3007]
[1756346393083,21.9446,4518.8,4518.7,0.3007]
[1756346393484,1.0838,4518.6,4518.5,3.2078]
[1756346393792,21.9446,4518.6,4518.5,3.2078]
[1756346393995,21.9446,4518.6,4518.0,3.60617]
[1756346394181,21.9446,4518.6,4518.0,3.42912]
[1756346394182,0.6726,4518.1,4518.0,3.42912]
[1756346394387,0.6726,4518.1,4518.0,3.2078]
[1756346394388,21.9436,4518.1,4518.0,3.2078]
[1756346395787,21.9436,4518.1,4518.0,4.5769]
[1756346396385,21.9436,4518.1,4518.0,4.8642]
[1756346397785,21.9436,4518.1,4518.0,4.5769]
[1756346400394,1.98317201,4520.9,4518.0,4.5769]
[1756346400395,1.6746,4518.4,4518.3,1.6564]
[1756346400696,21.9416,4518.4,4518.3,1.6564]
[1756346401092,21.9416,4518.4,4517.6,0.69911]
[1756346401093,21.3508,4518.4,4517.6,0.69911]
[1756346401294,1.6746,4517.7,4517.6,1.76751]
[1756346401495,1.6746,4517.6,4517.5,3.2078]
[1756346401699,1.6746,4517.6,4516.9,3.8984]
[1756346401992,1.1523,4518.2,4518.1,0.675]
[1756346402296,0.7518,4519.4,4519.3,1.6505]
[1756346402491,0.4005,4519.8,4519.5,1.6505]
[1756346402695,0.4761,4519.8,4519.7,2.04873]
[1756346402899,0.9562,4519.8,4519.7,1.6505]
[1756346403093,0.9562,4519.8,4519.7,1.3656]
[1756346403094,1.6439,4519.8,4519.7,1.3656]
[1756346403301,1.6439,4519.8,4519.7,0.9714]
[1756346403892,1.6439,4519.4,4519.3,3.2078]
[1756346404101,12.0139,4519.4,4518.9,0.2964]
[1756346404302,0.6765,4519.0,4518.9,1.07329]
[1756346404509,17.4349,4519.0,4518.9,1.46749]
[1756346404713,0.1964,4519.3,4519.2,1.27917]
[1756346404914,0.1964,4519.9,4519.8,1.6505]
[1756346405104,21.4833,4519.9,4519.8,1.6505]
[1756346405306,21.0828,4519.9,4519.8,1.6505]
[1756346406507,0.7518,4519.9,4519.8,1.6505]
[1756346406712,20.332,4520.0,4519.9,2.04871]
[1756346407609,20.8041,4520.0,4519.9,2.04871]
[1756346407914,21.0838,4520.0,4519.9,2.04871]
[1756346409314,0.2797,4520.7,4520.6,1.6505]
[1756346409509,1.6439,4520.7,4520.6,4.5734]
[1756346409717,1.6439,4520.7,4520.6,4.97154]
[1756346410210,1.6439,4520.7,4520.6,5.25644]
[1756346410512,1.6439,4520.7,4520.6,4.1792]
[1756346410714,1.6439,4520.7,4520.6,4.5734]
[1756346411014,1.6439,4520.7,4520.6,4.8583]
[1756346411402,1.6439,4520.7,4520.6,4.5734]
[1756346411714,1.6439,4520.7,4520.6,3.8828]
[1756346413316,1.6439,4520.7,4520.6,3.2078]
[1756346413615,5.6439,4520.7,4520.6,3.2078]
[1756346413812,5.6439,4520.7,4519.9,0.6906]
[1756346413813,0.9674,4520.6,4520.0,3.2078]
[1756346414014,1.6439,4520.1,4520.0,3.2078]
[1756346414214,21.9659,4520.1,4520.0,3.2078]
[1756346414514,1.3642,4519.8,4519.7,2.04872]
[1756346414707,1.6439,4519.8,4519.7,1.2563]
[1756346415414,1.6439,4519.8,4519.7,1.6505]
[1756346417410,1.6439,4519.6,4519.5,3.2078]
[1756346417611,0.6802,4519.5,4518.9,3.60609]
[1756346417808,1.6439,4519.0,4518.9,3.89099]
[1756346418009,21.9589,4519.0,4518.9,3.89099]
[1756346418810,21.9589,4519.0,4518.9,3.2078]
[1756346419012,25.9589,4519.0,4518.5,0.39832]
[1756346419215,1.6439,4518.7,4518.6,1.07331]
[1756346419419,1.1598,4518.7,4518.6,2.04881]
[1756346419720,1.077,4518.7,4518.6,2.04881]
[1756346419917,1.3642,4518.7,4518.6,2.04881]
[1756346420219,1.6439,4518.7,4518.6,2.04881]
[1756346421615,0.6762,4518.7,4518.6,2.04881]
[1756346421815,21.2787,4519.0,4518.9,2.04879]
[1756346422218,21.6792,4519.0,4518.9,2.04879]
[1756346423814,1.077,4519.4,4519.3,1.07326]
[1756346424022,21.6742,4519.4,4519.3,2.04876]
[1756346424217,20.5967,4519.7,4519.6,2.04873]
[1756346424523,21.1956,4520.0,4519.9,1.6505]
[1756346424717,20.7951,4520.0,4519.9,1.6505]
[1756346425016,20.5987,4520.0,4519.9,1.6505]
[1756346425620,20.323,4520.0,4519.9,4.8583]
[1756346425923,0.8726,4520.3,4520.2,2.04868]
[1756346426122,8.376,4520.3,4520.2,2.04868]
[1756346426325,8.6632,4520.3,4520.2,2.04868]
[1756346427822,1.3642,4520.3,4520.2,2.04868]
[1756346428125,15.523,4520.3,4520.2,2.04868]
[1756346428726,15.8102,4520.3,4520.2,2.04868]
[1756346428926,16.0899,4520.3,4520.2,2.04868]
[1756346430326,0.6762,4520.3,4520.2,2.04868]
[1756346430627,21.1876,4520.4,4520.3,1.6505]
[1756346430827,21.6792,4520.4,4520.3,1.6505]
[1756346431329,21.6792,4520.4,4520.3,1.2563]
[1756346431330,21.9589,4520.4,4520.3,1.2563]
[1756346431627,21.9589,4520.4,4520.2,0.39818]
[1756346431628,1.2434,4520.3,4520.2,0.39818]
[1756346431830,1.6466,4520.3,4520.2,0.39818]
[1756346432325,1.6466,4520.3,4520.2,0.88888]
[1756346432526,1.0797,4520.3,4520.2,2.06138]
[1756346432721,0.4721,4520.3,4520.2,2.06138]
[1756346433327,0.8753,4520.3,4520.2,2.06138]
[1756346433828,1.3578,4520.8,4520.7,1.6632]
[1756346434029,21.6678,4520.8,4520.7,2.06133]
[1756346434324,20.9779,4520.8,4520.7,2.06133]
[1756346434525,0.275,4520.8,4520.7,2.06133]
[1756346434725,1.3578,4521.1,4521.0,2.06131]
[1756346435027,1.3578,4521.1,4521.0,5.26911]
[1756346435228,1.0711,4521.1,4521.0,5.26911]
[1756346435727,52.7519,4521.4,4521.3,0.39808]
[1756346435928,53.5368,4521.4,4521.3,2.06128]
[1756346436227,0.275,4521.4,4521.3,2.06128]
[1756346436830,0.8807,4521.4,4521.3,2.06128]
[1756346437131,21.3781,4521.8,4521.7,2.06125]
[1756346437828,21.6648,4521.8,4521.7,2.06125]
[1756346438630,21.951,4521.8,4521.7,2.06125]
[1756346438823,21.951,4521.8,4521.7,0.39805]
[1756346440331,21.951,4521.8,4521.7,0.68635]
[1756346440522,21.951,4521.8,4521.7,0.2883]
[1756346441036,1.644,4521.7,4521.6,0.88875]
[1756346441230,1.644,4521.7,4521.6,1.63035]
[1756346441828,1.644,4521.7,4521.6,2.06125]
[1756346442033,1.1674,4521.7,4521.6,2.06125]
[1756346442228,21.942,4521.7,4521.6,2.06125]
[1756346445031,20.9659,4521.7,4521.5,3.2078]
[1756346445233,1.644,4521.6,4521.5,3.2078]
[1756346448840,1.644,4521.6,4521.5,3.4961]
[1756346449038,21.923,4521.6,4521.5,3.4961]
[1756346449241,11.6959,4521.6,4521.5,4.871]
[1756346449436,12.65,4521.6,4521.5,3.6985]
[1756346449641,12.65,4521.6,4521.5,3.2078]
[1756346449935,0.9761,4522.2,4521.7,0.9465]
[1756346450133,1.3578,4521.9,4521.8,0.6582]
[1756346450534,1.644,4521.9,4521.8,0.6582]
[1756346450738,1.644,4521.9,4521.8,0.9465]
[1756346451337,1.644,4521.9,4521.8,1.2323]
[1756346452143,1.644,4521.9,4521.8,1.6632]
[1756346453139,0.2025,4521.6,4521.5,3.8411]
[1756346453442,20.271,4521.7,4521.6,1.6632]
[1756346454138,21.915,4521.7,4521.6,1.6632]
[1756346454339,20.6742,4521.7,4521.6,1.6632]
[1756346454529,20.6702,4521.7,4521.6,1.6632]
[1756346454934,21.911,4521.7,4521.6,1.6632]
[1756346456242,21.6248,4521.7,4521.6,1.6632]
[1756346456541,21.911,4521.7,4521.6,1.6632]
[1756346457941,21.6248,4521.7,4521.6,1.6632]
[1756346459036,21.911,4521.7,4521.6,1.6632]
[1756346459740,21.911,4521.7,4521.6,0.4907]
[1756346460040,1.644,4521.6,4521.5,4.38236]
[1756346460246,1.644,4521.6,4521.5,4.57056]
[1756346460449,1.644,4521.6,4521.5,5.26906]
[1756346460744,1.644,4521.6,4521.5,3.2078]
[1756346460946,1.644,4521.6,4521.5,3.4961]
[1756346461147,1.644,4521.6,4521.5,3.2078]
[1756346461546,1.644,4521.6,4521.5,3.6985]
[1756346461746,1.644,4521.6,4521.5,3.9843]
[1756346462247,1.644,4521.6,4521.5,4.8653]
[1756346462949,1.3578,4521.6,4521.5,4.8653]
[1756346463142,21.6188,4521.6,4521.5,4.8653]
[1756346466150,21.9089,4521.6,4521.5,3.4961]
[1756346466447,21.9089,4521.6,4521.5,3.2078]
[1756346471150,21.9089,4521.6,4521.5,3.5045]
[1756346472461,21.9089,4521.6,4521.5,3.2078]
[1756346472956,0.4534,4521.0,4520.9,3.2078]
[1756346473257,21.8975,4521.0,4520.9,3.2078]
[1756346474556,21.8975,4521.0,4520.9,4.8586]
[1756346474948,1.3484,4521.0,4520.9,4.8586]
[1756346475150,1.6385,4521.8,4521.7,1.61854]
[1756346475360,3.9145,4521.8,4521.7,2.04884]
[1756346477162,3.9145,4521.8,4521.7,1.6508]
[1756346478058,11.7125,4521.8,4521.7,1.6508]
[1756346482976,11.7125,4521.8,4521.7,1.2205]
[1756346483478,1.3484,4521.8,4521.7,1.6508]
[1756346483677,1.3484,4522.2,4522.1,1.04141]
[1756346483878,1.6385,4522.2,4522.1,2.04881]
[1756346485472,1.3484,4522.2,4522.1,2.04881]
[1756346485878,0.5919,4522.1,4521.9,0.2967]
[1756346486179,1.6385,4522.0,4521.9,2.04883]
[1756346486773,0.6494,4521.8,4521.6,3.60585]
[1756346486974,1.6385,4521.7,4521.6,3.90255]
[1756346487472,1.6385,4521.7,4521.6,4.56555]
[1756346487669,1.6385,4521.7,4521.6,5.25665]
[1756346487874,1.1524,4522.1,4522.0,2.04882]
[1756346488074,1.3484,4522.1,4522.0,2.04882]
[1756346488476,1.0466,4522.1,4522.0,2.04882]
[1756346488676,1.3484,4522.1,4522.0,2.04882]
[1756346488977,1.6385,4522.1,4522.0,1.6508]
[1756346489181,1.6385,4521.9,4521.8,0.39804]
[1756346489775,1.6385,4521.9,4521.8,0.69474]
[1756346490785,1.6385,4521.9,4521.8,1.35774]
[1756346490980,21.8945,4521.9,4521.8,0.88744]
[1756346491284,21.8945,4521.9,4521.8,0.69474]
[1756346491686,21.8945,4521.9,4521.8,0.39804]
[1756346492775,21.8935,4521.9,4521.8,2.02254]
[1756346493287,21.8935,4521.9,4521.8,1.62614]
[1756346493585,21.8935,4521.9,4521.8,1.36534]
[1756346493794,21.6034,4521.9,4521.8,2.03914]
[1756346493982,1.3484,4521.9,4521.8,2.03914]
[1756346494175,1.6747,4522.2,4522.1,0.39801]
[1756346494380,10.3357,4522.2,4522.1,0.79361]
[1756346494593,1.6747,4522.2,4522.1,1.07101]
[1756346494785,21.9297,4522.2,4521.8,0.2816]
[1756346495086,20.255,4522.2,4521.8,0.39804]
[1756346495280,1.6747,4521.9,4521.8,0.39804]
[1756346495680,1.6747,4521.9,4521.8,2.03914]
[1756346495882,1.6747,4521.9,4521.8,1.07524]
[1756346496185,1.6747,4521.9,4521.6,3.2078]
[1756346496383,1.6747,4521.2,4521.1,3.2078]
[1756346496686,21.9287,4521.2,4521.1,3.2078]
[1756346497087,0.2011,4520.8,4520.7,0.39813]
[1756346497290,1.6747,4520.8,4520.7,0.39813]
[1756346498192,0.6841,4520.1,4520.0,3.4894]
[1756346498385,21.9287,4520.1,4520.0,3.2078]
[1756346498882,20.9381,4520.1,4519.5,3.2078]
[1756346499082,1.0904,4519.6,4519.5,5.24713]
[1756346499281,1.3882,4520.0,4519.9,2.03931]
[1756346500086,1.6747,4520.0,4519.9,1.6411]
[1756346500390,1.6747,4520.0,4519.9,1.2447]
[1756346501486,1.6747,4520.0,4519.9,0.2816]
[1756346502184,1.6747,4520.0,4519.9,0.9673]
[1756346502385,1.6747,4520.0,4519.9,1.2447]
[1756346503492,1.6747,4520.0,4519.9,0.2816]
[1756346503694,1.6747,4519.8,4519.7,0.2816]
[1756346504297,1.6747,4519.8,4519.5,3.4979]
[1756346504494,0.1968,4519.6,4519.5,3.2078]
[1756346504695,21.6452,4519.6,4519.5,4.8489]
[1756346504894,21.9317,4519.6,4519.5,4.8489]
[1756346505295,21.9317,4519.6,4519.5,4.4525]
[1756346505897,21.9317,4519.6,4519.5,4.8489]
[1756346506198,21.9317,4519.6,4519.5,3.2078]
[1756346507194,0.9906,4519.5,4519.0,3.2078]
[1756346507402,1.6747,4519.1,4519.0,3.2078]
[1756346507697,21.9327,4519.1,4519.0,3.2078]
[1756346509102,21.9327,4519.1,4519.0,3.4894]
[1756346509399,20.9421,4519.1,4518.5,3.2078]
[1756346509595,1.6747,4518.6,4518.5,3.2078]
[1756346509795,0.4063,4518.6,4518.5,4.8489]
[1756346509988,20.6653,4518.7,4518.5,4.2772]
[1756346510194,20.9515,4518.7,4518.6,1.6411]
[1756346510398,21.1483,4518.7,4518.6,1.6411]
[1756346510597,21.9337,4518.7,4518.6,1.6411]
[1756346510804,20.259,4518.7,4518.6,1.6411]
[1756346511193,0.4063,4519.0,4518.7,0.39831]
[1756346511510,0.2862,4519.5,4519.4,1.6411]
[1756346511697,3.934,4519.6,4519.4,6.64818892]
[1756346511892,3.934,4519.6,4519.5,1.6411]
[1756346512092,0.2862,4519.8,4519.7,1.6411]
[1756346512501,0.8893,4519.8,4519.7,1.6411]
[1756346512707,1.0904,4519.8,4519.7,1.6411]
[1756346513400,1.3882,4519.8,4519.7,1.6411]
[1756346513701,0.9706,4519.6,4519.5,0.2816]
[1756346513906,1.3882,4519.6,4519.5,1.6411]
[1756346514204,0.2862,4519.6,4519.5,1.6411]
[1756346517105,11.2311,4520.0,4519.7,0.39822]
[1756346517291,11.9152,4520.0,4519.9,0.673]
[1756346517495,11.9152,4520.0,4519.9,1.6411]
[1756346517800,1.3882,4520.0,4519.9,1.6411]
[1756346517994,0.6841,4520.0,4519.4,3.2078]
[1756346518195,1.6747,4519.6,4519.5,0.9631]
[1756346518401,1.3882,4519.6,4519.5,0.9631]
[1756346518608,1.3882,4519.6,4519.5,1.6411]
[1756346519106,1.6747,4519.6,4519.5,1.6411]
[1756346519298,1.6747,4519.6,4519.5,1.2447]
[1756346519500,1.6747,4519.6,4519.5,1.6411]
[1756346520707,5.89596,4519.6,4518.9,3.4979]
[1756346520908,1.6747,4519.0,4518.9,4.8489]
[1756346521205,1.0904,4519.0,4518.9,4.8489]
[1756346521402,0.4063,4519.3,4519.0,0.39829]
[1756346521605,0.4063,4519.3,4519.2,1.6411]
[1756346521809,1.3758,4519.3,4519.2,1.6411]
[1756346522105,1.0814,4519.3,4519.2,1.6411]
[1756346522303,1.6748,4519.3,4519.2,1.6411]
[1756346522609,1.6451,4519.0,4518.9,3.7186]
[1756346523298,0.6478,4518.5,4518.4,3.2078]
[1756346523508,5.6451,4518.5,4517.9,3.2078]
[1756346523706,0.6478,4518.0,4517.9,3.2078]
[1756346524006,1.6451,4518.0,4517.9,3.7186]
[1756346525304,1.6451,4517.5,4517.4,3.7186]
[1756346525610,1.3461,4517.5,4517.4,4.8403]
[1756346526005,1.0517,4517.5,4517.4,4.8403]
[1756346526799,1.6451,4517.5,4517.4,3.2078]
[1756346527000,1.6451,4517.5,4516.9,3.7186]
[1756346527001,1.6451,4517.0,4516.9,3.7186]
[1756346527403,1.6451,4517.0,4516.9,4.1839]
[1756346527604,1.6451,4517.0,4516.9,4.4473]
[1756346527998,1.6451,4517.0,4516.9,4.1684]
[1756346528204,1.6451,4517.0,4516.9,3.905]
[1756346528506,1.6451,4517.0,4516.9,3.2078]
[1756346528800,0.6478,4516.7,4516.6,0.5847]
[1756346529006,1.6451,4516.7,4516.6,1.6325]
[1756346530407,1.3461,4516.7,4516.6,1.6325]
[1756346530607,1.0517,4516.7,4516.6,1.6325]
[1756346531804,1.3461,4517.0,4516.9,1.6325]
[1756346532113,20.273,4517.5,4517.4,1.37613]
[1756346532306,20.273,4517.5,4517.4,5.23873]
[1756346532507,20.7287,4517.5,4517.4,5.23873]
[1756346532705,21.3247,4517.5,4517.4,5.23873]
[1756346532908,20.9208,4517.5,4517.4,5.23873]
[1756346533106,20.273,4517.5,4517.4,5.23873]
[1756346533609,21.3247,4517.5,4517.4,4.8403]
[1756346533913,21.9181,4517.5,4517.4,4.8403]
[1756346534111,21.6191,4517.5,4517.4,4.8403]
[1756346534304,52.4534,4517.8,4517.4,4.8403]
[1756346534505,0.2629,4517.6,4517.5,1.76752]
[1756346534714,0.6478,4517.6,4517.5,2.03092]
[1756346535014,1.6451,4517.6,4517.5,1.6325]
[1756346535311,1.6451,4517.6,4517.4,3.2078]
[1756346535508,52.159,4517.8,4517.0,1.6325]
[1756346535509,1.1533,4517.1,4517.0,1.6325]
[1756346535703,1.3461,4517.7,4517.6,1.6325]
[1756346535905,21.3377,4517.7,4517.6,1.6325]
[1756346536112,21.9311,4517.7,4517.6,1.6325]
[1756346536515,21.6321,4517.7,4517.6,1.6325]
[1756346536818,20.5489,4517.7,4517.6,1.6325]
[1756346537313,20.286,4517.7,4517.6,1.6325]
[1756346537510,0.4039,4518.0,4517.6,1.6325]
[1756346537708,0.6668,4518.0,4517.9,4.8403]
[1756346537907,1.0517,4518.0,4517.9,5.23868]
[1756346538104,1.3461,4518.0,4517.9,5.23868]
[1756346538418,0.2629,4518.0,4517.9,5.23868]
[1756346539013,0.6478,4518.0,4517.9,5.23868]
[1756346540515,1.0517,4518.0,4517.9,5.23868]
[1756346541109,1.3461,4518.0,4517.9,5.23868]
[1756346541510,20.6879,4518.3,4518.2,2.03086]
[1756346541717,21.438,4518.3,4518.2,2.03086]
[1756346541908,21.6301,4518.3,4518.2,2.03086]
[1756346542104,21.6301,4518.3,4518.2,1.6325]
[1756346542309,21.9291,4518.3,4518.2,1.6325]
[1756346542711,21.6301,4518.3,4518.2,1.6325]
[1756346543015,1.3461,4518.3,4518.2,1.6325]
[1756346544318,21.6221,4518.3,4518.2,1.6325]
[1756346545112,21.3277,4518.3,4518.2,1.6325]
[1756346545310,0.2629,4518.3,4518.2,1.6325]
[1756346545510,1.3461,4518.3,4518.2,1.6325]
[1756346545916,1.6451,4518.3,4518.2,1.6325]
[1756346546116,21.9201,4518.3,4518.2,1.6325]
[1756346547117,21.9201,4518.3,4518.1,0.39836]
[1756346547312,1.6451,4518.2,4518.1,0.70416]
[1756346547622,1.6451,4518.2,4518.1,0.90916]
[1756346547813,1.6451,4518.2,4518.1,2.03086]
[1756346548012,1.3461,4518.2,4518.1,2.03086]
[1756346548310,1.0517,4518.2,4518.1,2.03086]
[1756346548511,1.154,4518.5,4518.4,2.03084]
[1756346548707,1.3461,4518.5,4518.4,5.23864]
[1756346548910,21.3227,4518.5,4518.4,2.03084]
[1756346549312,21.3227,4518.5,4518.4,5.23864]
[1756346550517,20.5339,4518.5,4518.4,5.23864]
[1756346551920,0.2629,4518.5,4518.4,5.23864]
[1756346552325,20.7383,4518.7,4518.6,1.04842]
[1756346552527,21.1281,4518.7,4518.6,2.03522]
[1756346552822,21.8955,4518.7,4518.6,2.03522]
[1756346554617,21.8955,4518.7,4518.6,0.88392]
[1756346554815,21.8955,4518.7,4518.6,0.4856]
[1756346556320,21.8955,4518.7,4518.6,0.9522]
[1756346556526,21.8955,4518.7,4518.6,1.2157]
[1756346558028,21.8955,4518.7,4518.6,0.6729]
[1756346558225,21.8955,4518.7,4518.5,0.39833]
[1756346558431,21.3143,4518.7,4518.5,0.39833]
[1756346558633,1.6358,4518.6,4518.5,0.39833]
[1756346558932,1.6358,4518.6,4518.5,2.03523]
[1756346559635,1.3408,4518.6,4518.5,2.03523]
[1756346559829,0.2775,4518.6,4518.5,2.03523]
[1756346560134,32.1575,4519.3,4519.2,1.33467]
[1756346560330,20.9333,4519.3,4519.2,3.43618012]
[1756346560534,21.1344,4519.3,4519.2,3.43618012]
[1756346560734,21.3206,4519.3,4519.2,3.43618012]
[1756346560932,21.6068,4519.3,4519.2,3.43618012]
[1756346562436,21.9018,4519.3,4519.2,3.43618012]
[1756346562642,21.6068,4519.3,4519.2,3.43618012]
[1756346562941,1.3408,4519.3,4519.2,3.43618012]
[1756346563136,8.5688,4519.3,4519.2,3.43618012]
[1756346563337,8.8638,4519.3,4519.2,1.07117]
[1756346563937,7.8928,4519.3,4519.1,3.2078]
[1756346564140,1.6358,4519.2,4519.1,3.2078]
[1756346564340,1.246,4518.7,4518.6,0.39832]
[1756346564536,0.6848,4518.6,4518.5,3.2078]
[1756346564736,1.6358,4518.6,4518.5,3.2078]
[1756346565440,1.6358,4518.6,4518.5,3.4941]
[1756346566239,1.6358,4518.6,4518.5,3.6934]
[1756346569251,0.2862,4518.9,4518.8,0.6501]
[1756346569449,0.951,4519.3,4519.2,2.03517]
[1756346569645,0.951,4519.3,4519.2,6.64398012]
[1756346570047,1.3408,4519.3,4519.2,6.64398012]
[1756346570348,1.6358,4519.3,4519.2,4.8447]
[1756346570650,1.3408,4519.3,4519.2,6.24571012]
[1756346570949,1.0546,4519.3,4519.2,6.24571012]
[1756346571141,1.3408,4519.3,4519.2,6.24571012]
[1756346571449,1.3408,4519.3,4519.2,4.8447]
[1756346572849,1.3408,4519.6,4519.5,1.6369]
[1756346574346,1.6358,4519.6,4519.5,1.6369]
[1756346575452,0.6648,4519.4,4519.3,0.39826]
[1756346575754,1.6358,4519.4,4519.3,0.88386]
[1756346576049,1.6358,4519.4,4519.3,1.61396]
[1756346576246,1.6358,4519.4,4519.3,2.03516]
[1756346576552,1.6358,4519.4,4519.3,1.61396]
[1756346577051,1.6358,4519.4,4519.3,0.39826]
[1756346577553,1.6358,4519.4,4519.3,1.16316]
[1756346578148,1.3408,4519.4,4519.3,2.03516]
[1756346578550,1.6358,4519.4,4519.3,2.03516]
[1756346578950,1.6358,4519.4,4519.3,0.2863]
[1756346579154,1.0546,4519.4,4519.2,0.39826]
[1756346579347,1.6358,4519.3,4519.1,0.2863]
[1756346579548,1.6358,4519.2,4519.1,0.9522]
[1756346579752,1.6358,4519.2,4519.1,1.2157]
[1756346580348,1.3408,4519.0,4518.9,1.6369]
[1756346580556,0.9598,4519.4,4519.3,1.6369]
[1756346580750,0.9598,4519.4,4519.3,1.2157]
[1756346580949,0.6648,4519.4,4519.1,0.2863]
[1756346581144,0.9598,4519.2,4519.1,0.5656]
[1756346581347,1.6358,4519.2,4519.1,0.2863]
[1756346581759,1.3654,4518.8,4518.7,3.7047]
[1756346582055,1.6548,4518.8,4518.7,4.0001]
[1756346582654,1.6548,4518.8,4518.7,4.198]
[1756346583857,1.6548,4518.8,4518.5,0.304]
[1756346584052,0.2014,4518.7,4518.6,0.6515]
[1756346584250,1.0788,4519.2,4519.1,0.6515]
[1756346584454,0.684,4519.6,4519.5,0.6515]
[1756346584652,0.684,4519.6,4519.5,1.6514]
[1756346584653,1.3682,4519.6,4519.5,1.6514]
[1756346584853,1.0788,4519.6,4519.5,1.6514]
[1756346585459,1.3682,4520.1,4520.0,2.0496]
[1756346585655,21.6282,4520.1,4520.0,0.6948]
[1756346585851,1.0788,4520.0,4519.9,1.2509]
[1756346586052,1.3682,4520.0,4519.9,1.6514]
[1756346586252,0.9734,4520.0,4519.9,1.6514]
[1756346586562,0.2734,4520.0,4519.9,1.6514]
[1756346587057,20.26,4520.3,4519.9,0.6515]
[1756346587247,1.3682,4520.2,4520.1,1.6514]
[1756346587447,1.6548,4520.2,4520.1,0.4969]
[1756346587655,1.6548,4520.2,4520.1,0.304]
[1756346587848,1.6548,4520.2,4519.8,3.2078]
[1756346588057,1.6548,4520.0,4519.9,0.304]
[1756346588354,1.6548,4520.0,4519.9,0.4969]
[1756346588556,21.9138,4520.0,4519.9,1.2509]
[1756346588751,21.9138,4520.0,4519.9,1.6514]
[1756346588952,1.6548,4520.0,4519.9,1.6514]
[1756346589153,21.9138,4520.0,4519.9,0.304]
[1756346589352,21.9138,4520.0,4519.8,3.60601]
[1756346589353,1.6548,4519.9,4519.8,3.60601]
[1756346589552,1.6548,4519.9,4519.8,5.25741]
[1756346593261,1.6548,4519.9,4519.8,4.85691]
[1756346593466,1.6548,4519.9,4519.8,5.25741]
[1756346593665,1.3682,4519.9,4519.8,5.25741]
[1756346594567,0.4748,4519.9,4519.8,5.25741]
[1756346595357,0.2734,4519.9,4519.8,5.25741]
[1756346595559,1.6548,4520.5,4520.4,1.6514]
[1756346595769,21.9118,4520.5,4520.4,1.2509]
[1756346595963,21.9118,4520.5,4520.4,0.9902]
[1756346596160,0.4748,4520.1,4520.0,0.1929]
[1756346596364,21.9118,4520.1,4520.0,1.19049]
[1756346596563,21.9118,4520.1,4520.0,0.7923]
[1756346597056,21.9118,4520.1,4520.0,0.4969]
[1756346597262,21.3358,4520.1,4519.9,0.3982]
[1756346597466,1.6548,4520.0,4519.9,0.3982]
[1756346597967,1.6548,4520.0,4519.9,0.7022]
[1756346598172,1.6548,4520.0,4519.9,0.304]
[1756346598466,1.6548,4519.9,4519.8,3.60601]
[1756346598670,1.6548,4519.9,4519.8,0.39821]
[1756346598872,0.9866,4520.6,4519.9,0.5994]
[1756346599060,0.1934,4520.2,4520.1,0.7923]
[1756346599261,1.6548,4520.2,4520.1,0.4969]
[1756346599556,1.6548,4520.2,4520.1,0.304]
[1756346599757,1.6548,4520.2,4520.1,0.4969]
[1756346599962,21.6242,4520.2,4520.1,1.6514]
[1756346600160,21.3338,4520.2,4520.1,1.6514]
[1756346600366,0.6972,4520.5,4520.1,0.9999]
[1756346600661,32.3518,4520.8,4520.7,2.04954]
[1756346600868,52.6068,4520.8,4520.7,2.04954]
[1756346602363,52.8002,4520.8,4520.7,2.04954]
[1756346602864,53.2108,4520.8,4520.7,2.04954]
[1756346603064,53.5002,4520.8,4520.7,2.04954]
[1756346603469,20.255,4520.8,4520.7,3.45055012]
[1756346605071,1.2442,4521.1,4521.0,1.4501]
[1756346605369,21.9078,4521.1,4521.0,1.4501]
[1756346605569,21.9078,4521.1,4521.0,2.0495]
[1756346607165,21.9068,4521.1,4521.0,2.0495]
[1756346608176,21.6202,4521.1,4521.0,2.0495]
[1756346608875,21.9068,4521.1,4521.0,2.0495]
[1756346609373,21.6192,4521.1,4521.0,2.0495]
[1756346609573,21.3298,4521.1,4521.0,2.0495]
[1756346609976,21.6192,4521.1,4521.0,2.0495]
[1756346611872,21.9262,4521.1,4521.0,0.7021]
[1756346612073,21.9262,4521.1,4521.0,1.1906]
[1756346613073,21.9262,4521.1,4521.0,1.6396]
[1756346613273,21.9262,4521.1,4521.0,2.0511]
[1756346615383,1.3682,4521.1,4521.0,2.0511]
[1756346615583,21.4228,4521.1,4521.0,2.0511]
[1756346615873,1.2853,4521.4,4521.3,0.39808]
[1756346616075,21.6175,4521.4,4521.3,3.44529012]
[1756346616276,20.9187,4521.4,4521.3,3.44529012]
[1756346616473,21.3104,4521.4,4521.3,3.44529012]
[1756346616972,21.6175,4521.4,4521.3,3.44529012]
[1756346618377,21.3094,4521.4,4521.3,3.44529012]
[1756346618577,21.6165,4521.4,4521.3,3.44529012]
[1756346619173,20.247,4521.4,4521.3,3.44529012]
[1756346619577,0.6988,4521.8,4521.7,0.39805]
[1756346619878,0.6988,4522.2,4521.7,6.25501012]
[1756346620076,0.8923,4522.4,4522.3,2.0442]
[1756346620277,1.3695,4522.4,4522.3,5.252]
[1756346621978,12.0209,4522.6,4522.5,2.04418]
[1756346622481,12.0209,4522.6,4522.5,2.22104426]
[1756346622676,0.7829,4522.6,4522.5,2.22104426]
[1756346622875,0.7829,4522.6,4522.5,3.62205438]